fUSD/lending_fUSD_20250302
["ID","MTS","AMOUNT","RATE_DAILY","PERIOD"]
[355142222,1740934302745,-500.0,0.0002829,2]
[355142223,1740934302757,-1771.49,0.0002829,2]
[355142224,1740934302779,-568.26,0.0002829,2]
[355142225,1740934302791,-500.0,0.0002829,2]
[355142226,1740934302802,-1541.51480874,0.0002829,2]
[355142227,1740934302916,-3627.60519126,0.0002829,2]
[355142228,1740934302927,-2021.32138939,0.0002829,2]
[355142229,1740934302940,-504.90861061,0.0002829,2]
[355142230,1740934302950,-500.0,0.0002829,2]
[355142231,1740934302962,-655.54,0.0002829,2]
[355142232,1740934302974,-2592.13,0.0002829,2]
[355142233,1740934302986,-500.0,0.0002829,2]
[355142234,1740934302996,-500.0,0.0002829,2]
[355142235,1740934303007,-564.51,0.0002829,2]
[355142236,1740934303018,-500.0,0.0002829,2]
[355142237,1740934303034,-2451.93,0.0002829,2]
[355142238,1740934303046,-2438.01,0.0002829,2]
[355142239,1740934303058,-500.0,0.0002829,2]
[355142240,1740934303070,-500.0,0.0002829,2]
[355142241,1740934303084,-1213.6,0.0002829,2]
[355142242,1740934303097,-500.0,0.0002829,2]
[355142243,1740934303109,-691.28,0.0002829,2]
[355142244,1740934303122,-2332.25,0.0002829,2]
[355142245,1740934303145,-500.0,0.0002829,2]
[355142246,1740934303168,-500.0,0.0002829,2]
[355142247,1740934303186,-2311.03,0.0002829,2]
[355142248,1740934303202,-128.60036473,0.0002829,2]
[355142249,1740934303224,-371.39963527,0.0002829,2]
[355142250,1740934303240,-500.0,0.0002829,2]
[355142251,1740934303259,-1410.42,0.0002829,2]
[355142252,1740934303284,-1370.74,0.0002829,2]
[355142253,1740934303301,-500.0,0.0002829,2]
[355142254,1740934303314,-1057.92,0.0002829,2]
[355142255,1740934303333,-2057.85,0.0002829,2]
[355142256,1740934303349,-500.0,0.0002829,2]
[355142257,1740934303365,-964.74,0.0002829,2]
[355142258,1740934303381,-500.0,0.0002829,2]
[355142259,1740934303398,-500.0,0.0002829,2]
[355142260,1740934303414,-2075.85,0.0002829,2]
[355142261,1740934303431,-500.0,0.0002829,2]
[355142262,1740934303447,-500.0,0.0002829,2]
[355142263,1740934303464,-764.34,0.0002829,2]
[355142264,1740934303481,-1881.44,0.0002829,2]
[355142265,1740934303497,-2611.42,0.0002829,2]
[355142266,1740934303516,-500.0,0.0002829,2]
[355142267,1740934303535,-2594.09,0.0002829,2]
[355142268,1740934303549,-593.67,0.0002829,2]
[355142269,1740934303562,-500.0,0.0002829,2]
[355142270,1740934303577,-500.0,0.0002829,2]
[355142271,1740934303595,-500.0,0.0002829,2]
[355142272,1740934303607,-788.64,0.0002829,2]
[355142273,1740934303619,-631.11,0.0002829,2]
[355142274,1740934303633,-3199.91,0.0002829,2]
[355142275,1740934303649,-500.0,0.0002829,2]
[355142276,1740934303665,-500.0,0.0002829,2]
[355142277,1740934303678,-200.0,0.0002829,2]
[355142278,1740934303690,-1556.3,0.0002829,2]
[355142279,1740934303708,-726.48,0.0002829,2]
[355142280,1740934303724,-500.0,0.0002829,2]
[355142281,1740934303737,-500.0,0.0002829,2]
[355142282,1740934303752,-500.0,0.0002829,2]
[355142283,1740934303768,-500.0,0.0002829,2]
[355142284,1740934303787,-531.3,0.0002829,2]
[355142285,1740934303803,-500.0,0.0002829,2]
[355142286,1740934303818,-500.0,0.0002829,2]
[355142287,1740934303834,-1042.40814192,0.0002829,2]
[355142288,1740934303854,-1193.77185808,0.0002829,2]
[355142289,1740934303870,-853.87,0.0002829,2]
[355142290,1740934303885,-333.80304811,0.0002829,2]
[355142291,1740934303903,-166.19695189,0.0002829,2]
[355142292,1740934303917,-500.0,0.0002829,2]
[355142293,1740934303932,-500.0,0.0002829,2]
[355142294,1740934303947,-500.0,0.0002829,2]
[355142295,1740934303961,-333.80304811,0.0002829,2]
[355142296,1740934303978,-1222.88695189,0.0002829,2]
[355142297,1740934303992,-1959.36,0.0002829,2]
[355142298,1740934304007,-639.1,0.0002829,2]
[355142299,1740934304026,-500.0,0.0002829,2]
[355142300,1740934304041,-1522.47,0.0002829,2]
[355142301,1740934304055,-633.68,0.0002829,2]
[355142302,1740934304070,-500.0,0.0002829,2]
[355142303,1740934304084,-500.0,0.0002829,2]
[355142304,1740934304098,-537.17,0.0002829,2]
[355142305,1740934304114,-500.0,0.0002829,2]
[355142306,1740934304129,-694.32,0.0002829,2]
[355142307,1740934304144,-500.0,0.0002829,2]
[355142308,1740934304159,-500.0,0.0002829,2]
[355142309,1740934304175,-500.0,0.0002829,2]
[355142310,1740934304189,-1357.3,0.0002829,2]
[355142311,1740934304202,-500.0,0.0002829,2]
[355142312,1740934304216,-615.16,0.0002829,2]
[355142313,1740934304229,-500.0,0.0002829,2]
[355142314,1740934304242,-500.0,0.0002829,2]
[355142315,1740934304255,-500.0,0.0002829,2]
[355142316,1740934304267,-500.0,0.0002829,2]
[355142317,1740934304286,-588.66,0.0002829,2]
[355142318,1740934304300,-381.56,0.0002829,2]
[355142319,1740934304312,-1763.62,0.0002829,2]
[355142320,1740934304326,-1461.0,0.0002829,2]
[355142321,1740934304339,-237.02,0.0002829,2]
[355142322,1740934304353,-500.0,0.0002829,2]
[355142323,1740934304366,-510.32,0.0002829,2]
[355142324,1740934304378,-781.22,0.0002829,2]
[355142325,1740934304390,-500.0,0.0002829,2]
[355142326,1740934304404,-974.41,0.0002829,2]
[355142327,1740934304417,-1077.96,0.0002829,2]
[355142328,1740934304430,-500.0,0.0002829,2]
[355142329,1740934304443,-774.86,0.0002829,2]
[355142330,1740934304457,-500.0,0.0002829,2]
[355142331,1740934304470,-1184.41,0.0002829,2]
[355142332,1740934304483,-500.0,0.0002829,2]
[355142333,1740934304495,-500.0,0.0002829,2]
[355142334,1740934304509,-602.5,0.0002829,2]
[355142335,1740934304526,-500.0,0.0002829,2]
[355142336,1740934304539,-1735.26,0.0002829,2]
[355142337,1740934304552,-500.0,0.0002829,2]
[355142338,1740934304566,-634.71,0.0002829,2]
[355142339,1740934304579,-500.0,0.0002829,2]
[355142340,1740934304593,-500.0,0.0002829,2]
[355142341,1740934304606,-500.0,0.0002829,2]
[355142342,1740934304618,-1904.42228185,0.0002829,2]
[355142343,1740934304634,-896.85771815,0.0002829,2]
[355142344,1740934304647,-756.78,0.0002829,2]
[355142345,1740934304659,-731.38,0.0002829,2]
[355142346,1740934304672,-610.68,0.0002829,2]
[355142347,1740934304685,-500.0,0.0002829,2]
[355142348,1740934304697,-1511.89829023,0.0002829,2]
[355142349,1740934304714,-389.03550183,0.0002829,2]
[355142350,1740934304734,-2945.03620794,0.0002829,2]
[355142351,1740934304746,-2384.18,0.0002829,2]
[355142352,1740934304762,-196.57,0.0002829,2]
[355142353,1740934304775,-500.0,0.0002829,2]
[355142354,1740934304788,-500.0,0.0002829,2]
[355142355,1740934304800,-500.0,0.0002829,2]
[355142356,1740934304813,-500.0,0.0002829,2]
[355142357,1740934304826,-500.0,0.00028291,2]
[355142358,1740934304839,-500.0,0.00028291,2]
[355142359,1740934304852,-500.0,0.00028291,2]
[355142360,1740934304864,-500.0,0.00028291,2]
[355142361,1740934304877,-500.0,0.00028291,2]
[355142362,1740934304888,-500.0,0.00028291,2]
[355142363,1740934304901,-406.71,0.00028291,2]
[355142364,1740934304913,-500.0,0.00028291,2]
[355142365,1740934304925,-500.0,0.00028291,2]
[355142366,1740934304940,-500.0,0.00028291,2]
[355142367,1740934304953,-343.5,0.00028291,2]
[355142368,1740934304965,-500.0,0.00028291,2]
[355142369,1740934304978,-500.0,0.00028291,2]
[355142370,1740934304991,-500.0,0.00028291,2]
[355142371,1740934305003,-500.0,0.00028291,2]
[355142372,1740934305016,-500.0,0.00028291,2]
[355142373,1740934305032,-500.0,0.00028291,2]
[355142374,1740934305044,-377.8,0.00028291,2]
[355142375,1740934305056,-500.0,0.00028291,2]
[355142376,1740934305069,-500.0,0.00028291,2]
[355142377,1740934305081,-500.0,0.00028291,2]
[355142378,1740934305094,-500.0,0.00028291,2]
[355142379,1740934305105,-539.43,0.00028291,2]
[355142380,1740934305118,-527.27,0.00028291,2]
[355142381,1740934305130,-500.0,0.00028291,2]
[355142382,1740934305143,-500.0,0.00028291,2]
[355142383,1740934305156,-500.0,0.00028291,2]
[355142384,1740934305167,-500.0,0.00028291,2]
[355142385,1740934305176,-241.96,0.00028291,2]
[355142386,1740934305186,-500.0,0.00028291,2]
[355142387,1740934305196,-570.27,0.00028291,2]
[355142388,1740934305206,-500.0,0.00028291,2]
[355142389,1740934305215,-559.42,0.00028291,2]
[355142390,1740934305225,-500.0,0.00028291,2]
[355142391,1740934305234,-635.26,0.00028291,2]
[355142392,1740934305245,-500.0,0.00028291,2]
[355142393,1740934305255,-542.62,0.00028291,2]
[355142394,1740934305264,-500.0,0.00028291,2]
[355142395,1740934305279,-500.0,0.00028291,2]
[355142396,1740934305288,-564.57,0.00028291,2]
[355142397,1740934305298,-500.0,0.00028291,2]
[355142398,1740934305307,-397.84,0.00028291,2]
[355142399,1740934305318,-500.0,0.00028291,2]
[355142400,1740934305328,-500.0,0.00028291,2]
[355142401,1740934305338,-500.0,0.00028291,2]
[355142402,1740934305348,-500.0,0.00028291,2]
[355142403,1740934305357,-500.0,0.00028291,2]
[355142404,1740934305367,-494.29069742,0.00028291,2]
[355142405,1740934305380,-10.15930258,0.00028291,2]
[355142406,1740934305389,-548.39,0.00028291,2]
[355142407,1740934305399,-500.0,0.00028291,2]
[355142408,1740934305409,-501.48,0.00028291,2]
[355142409,1740934305419,-500.0,0.00028291,2]
[355142410,1740934305429,-500.0,0.00028291,2]
[355142411,1740934305439,-500.0,0.00028291,2]
[355142412,1740934305449,-400.3,0.00028291,2]
[355142413,1740934305458,-1182.18,0.00028291,2]
[355142414,1740934305469,-500.0,0.00028291,2]
[355142415,1740934305479,-500.0,0.00028291,2]
[355142416,1740934305489,-500.0,0.00028291,2]
[355142417,1740934305499,-91.66857103,0.00028291,2]
[355142418,1740934305512,-464.68142897,0.00028291,2]
[355142419,1740934305524,-500.0,0.00028291,2]
[355142420,1740934305534,-500.0,0.00028291,2]
[355142421,1740934305543,-680.67,0.00028291,2]
[355142422,1740934305553,-500.0,0.00028291,2]
[355142423,1740934305563,-500.0,0.00028291,2]
[355142424,1740934305573,-500.0,0.00028291,2]
[355142425,1740934305582,-500.0,0.00028291,2]
[355142426,1740934305593,-587.6,0.00028291,2]
[355142427,1740934305602,-500.0,0.00028291,2]
[355142428,1740934305613,-500.0,0.00028291,2]
[355142429,1740934305624,-500.0,0.00028291,2]
[355142430,1740934305635,-500.0,0.00028291,2]
[355142431,1740934305646,-500.0,0.00028291,2]
[355142432,1740934305657,-500.0,0.00028291,2]
[355142433,1740934305667,-726.88,0.00028291,2]
[355142434,1740934305678,-168.47,0.00028291,2]
[355142435,1740934306165,-500.0,0.00028291,2]
[355142436,1740934306211,-500.0,0.00028291,2]
[355142437,1740934306238,-661.59,0.00028291,2]
[355142438,1740934306252,-802.77,0.00028291,2]
[355142439,1740934306262,-500.0,0.00028291,2]
[355142440,1740934306273,-500.0,0.00028291,2]
[355142441,1740934306285,-500.0,0.00028291,2]
[355142442,1740934306296,-500.0,0.00028291,2]
[355142443,1740934306306,-500.0,0.00028291,2]
[355142444,1740934306316,-500.0,0.00028291,2]
[355142445,1740934306326,-1069.61,0.00028291,2]
[355142446,1740934306336,-1034.02,0.00028291,2]
[355142447,1740934306347,-500.0,0.00028291,2]
[355142448,1740934306358,-1007.72,0.00028291,2]
[355142449,1740934306368,-500.0,0.00028291,2]
[355142450,1740934306379,-500.0,0.00028291,2]
[355142451,1740934306390,-596.18,0.00028291,2]
[355142452,1740934306402,-500.0,0.00028291,2]
[355142453,1740934306412,-595.8305709,0.00028291,2]
[355142454,1740934306422,-887.68,0.00028291,2]
[355142455,1740934306432,-500.0,0.00028291,2]
[355142456,1740934306442,-500.0,0.00028291,2]
[355142457,1740934306453,-500.0,0.00028291,2]
[355142458,1740934306463,-500.0,0.00028291,2]
[355142459,1740934306474,-500.0,0.00028291,2]
[355142460,1740934306484,-512.73,0.00028291,2]
[355142461,1740934306493,-500.0,0.00028291,2]
[355142462,1740934306503,-796.29,0.00028291,2]
[355142463,1740934306512,-500.0,0.00028291,2]
[355142464,1740934306522,-500.0,0.00028291,2]
[355142465,1740934306535,-512.31,0.00028291,2]
[355142466,1740934306547,-500.0,0.00028291,2]
[355142467,1740934306557,-504.61,0.00028291,2]
[355142468,1740934306568,-500.0,0.00028291,2]
[355142469,1740934306579,-500.0,0.00028291,2]
[355142470,1740934306589,-613.62,0.00028291,2]
[355142471,1740934306599,-500.0,0.00028291,2]
[355142472,1740934306610,-500.0,0.00028291,2]
[355142473,1740934306620,-767.83,0.00028291,2]
[355142474,1740934306630,-776.69,0.00028291,2]
[355142475,1740934306639,-500.0,0.00028291,2]
[355142476,1740934306649,-523.84,0.00028291,2]
[355142477,1740934306660,-284.38948286,0.00028291,2]
[355142478,1740934306670,-940.2,0.00028291,2]
[355142479,1740934306680,-790.97,0.00028291,2]
[355142480,1740934306690,-553.5,0.00028291,2]
[355142481,1740934306702,-1094.02,0.00028291,2]
[355142482,1740934306714,-600.93,0.00028291,2]
[355142483,1740934306727,-1052.79,0.00028291,2]
[355142484,1740934306737,-500.0,0.00028291,2]
[355142485,1740934306747,-500.0,0.00028291,7]
[355142486,1740934306760,-500.0,0.00028291,2]
[355142487,1740934306771,-500.0,0.00028291,2]
[355142488,1740934306787,-500.0,0.00028291,2]
[355142489,1740934306799,-500.0,0.00028291,2]
[355142490,1740934306808,-588.04,0.00028291,2]
[355142491,1740934306818,-641.32,0.00028291,2]
[355142492,1740934306827,-290.55,0.00028291,2]
[355142493,1740934306837,-500.0,0.00028291,2]
[355142494,1740934306847,-500.0,0.00028291,2]
[355142495,1740934306858,-884.29,0.00028291,2]
[355142496,1740934306868,-500.0,0.00028291,2]
[355142497,1740934306878,-1045.02,0.00028291,2]
[355142498,1740934306887,-500.0,0.00028291,2]
[355142499,1740934306897,-918.11,0.00028291,2]
[355142500,1740934306907,-500.0,0.00028291,2]
[355142501,1740934306917,-500.0,0.00028291,2]
[355142502,1740934306926,-1046.65,0.00028291,2]
[355142503,1740934306937,-392.72844044,0.00028291,2]
[355142504,1740934306948,-500.0,0.00028291,2]
[355142505,1740934306958,-500.0,0.00028291,2]
[355142506,1740934306969,-500.0,0.00028291,2]
[355142507,1740934306979,-500.0,0.00028291,2]
[355142508,1740934306990,-500.0,0.00028291,2]
[355142509,1740934307000,-500.0,0.00028291,2]
[355142510,1740934307011,-500.0,0.00028291,2]
[355142511,1740934307021,-500.0,0.00028291,2]
[355142512,1740934307037,-500.0,0.00028291,2]
[355142513,1740934307047,-529.8,0.00028291,2]
[355142514,1740934307058,-500.0,0.00028291,2]
[355142515,1740934307068,-374.58717764,0.00028291,2]
[355142516,1740934307078,-500.0,0.00028291,2]
[355142517,1740934307089,-500.0,0.00028299,2]
[355142518,1740934307099,-500.0,0.00028299,2]
[355142519,1740934307109,-500.0,0.00028299,2]
[355142520,1740934307120,-278.58334002,0.00028299,2]
[355142521,1740934307132,-500.0,0.00028299,2]
[355142522,1740934307142,-150.0,0.00028373,2]
[355142523,1740934307153,-7965.96944,0.00028381,2]
[355142524,1740934307165,-150.0,0.00028438,2]
[355142525,1740934307176,-612.24404387,0.00028452,5]
[355142526,1740934307186,-3521.23862221,0.00028464,2]
[355142527,1740934307196,-659.71433511,0.00028469,2]
[355142528,1740934307206,-300.0,0.00028513,10]
[355142529,1740934307217,-249.0,0.0002853,30]
[355142530,1740934307227,-249.0,0.0002854,30]
[355142531,1740934307238,-300.0,0.00028547,10]
[355142532,1740934307248,-12380.0,0.00028548,2]
[355142533,1740934307258,-249.0,0.0002855,30]
[355142534,1740934307269,-6193.75,0.00028556,8]
[355142535,1740934307281,-22662.02085745,0.00028556,8]
[355142536,1740934307296,-4644.89914255,0.00028556,8]
[355142537,1740934307306,-18479.74,0.00028556,8]
[355142538,1740934307317,-150.0,0.00028557,2]
[355142539,1740934307327,-1549.45,0.00028563,2]
[355142540,1740934307339,-500.0,0.00028563,2]
[355142541,1740934307349,-1640.73,0.00028563,2]
[355142542,1740934307360,-735.42,0.00028563,2]
[355142543,1740934307371,-1038.58,0.00028563,2]
[355142544,1740934307382,-1324.37,0.00028563,2]
[355142545,1740934307394,-1030.42,0.00028563,2]
[355142546,1740934307406,-1008.61,0.00028563,2]
[355142547,1740934307418,-1220.49,0.00028563,2]
[355142548,1740934307429,-974.65,0.00028563,2]
[355142549,1740934307439,-796.26,0.00028563,2]
[355142550,1740934307450,-1883.74,0.00028563,2]
[355142551,1740934307461,-1450.26,0.00028563,2]
[355142552,1740934307472,-1000.0,0.00028563,2]
[355142553,1740934307482,-1403.46,0.00028563,2]
[355142554,1740934307493,-500.0,0.00028563,2]
[355142555,1740934307504,-746.03,0.00028563,2]
[355142556,1740934307515,-816.44,0.00028563,2]
[355142557,1740934307530,-1361.09,0.00028563,2]
[355142558,1740934307543,-500.0,0.00028563,2]
[355142559,1740934307554,-500.0,0.00028563,2]
[355142560,1740934307566,-971.76,0.00028563,2]
[355142561,1740934307577,-1747.03,0.00028563,2]
[355142562,1740934307587,-1287.02,0.00028563,2]
[355142563,1740934307599,-863.73,0.00028563,2]
[355142564,1740934307611,-735.96,0.00028563,2]
[355142565,1740934307621,-905.51,0.00028563,2]
[355142566,1740934307631,-982.53,0.00028563,2]
[355142567,1740934307640,-1390.21,0.00028563,2]
[355142568,1740934307651,-595.81,0.00028563,2]
[355142569,1740934307661,-583.19,0.00028563,2]
[355142570,1740934307671,-598.39,0.00028563,2]
[355142571,1740934307682,-500.0,0.00028563,2]
[355142572,1740934307692,-1233.81,0.00028563,2]
[355142573,1740934307703,-2920.05,0.00028563,2]
[355142574,1740934307716,-890.18,0.00028563,2]
[355142575,1740934307726,-500.0,0.00028563,2]
[355142576,1740934307736,-4216.33,0.00028563,2]
[355142577,1740934307747,-825.61,0.00028563,2]
[355142578,1740934307761,-1005.08,0.00028563,2]
[355142579,1740934307772,-721.2,0.00028563,2]
[355142580,1740934307787,-500.0,0.00028563,2]
[355142581,1740934307797,-500.0,0.00028563,2]
[355142582,1740934307811,-3081.8,0.00028563,2]
[355142583,1740934307822,-651.66,0.00028563,2]
[355142584,1740934307834,-513.67,0.00028563,2]
[355142585,1740934307844,-500.0,0.00028563,2]
[355142586,1740934307855,-582.32,0.00028564,2]
[355142587,1740934307867,-984.08,0.00028564,2]
[355142588,1740934307877,-500.0,0.00028564,2]
[355142589,1740934307889,-274.03,0.00028564,2]
[355142590,1740934307899,-975.84,0.00028564,2]
[355142591,1740934307911,-596.68,0.00028564,2]
[355142592,1740934307924,-500.0,0.00028564,2]
[355142593,1740934307934,-649.95,0.00028564,2]
[355142594,1740934307944,-500.0,0.00028564,2]
[355142595,1740934307955,-913.81,0.00028564,2]
[355142596,1740934307966,-500.0,0.00028564,2]
[355142597,1740934307976,-826.37,0.00028564,2]
[355142598,1740934307987,-500.0,0.00028564,2]
[355142599,1740934307997,-523.21,0.00028564,2]
[355142600,1740934308008,-500.0,0.00028564,2]
[355142601,1740934308019,-500.0,0.00028564,2]
[355142602,1740934308033,-500.0,0.00028564,2]
[355142603,1740934308043,-500.0,0.00028564,2]
[355142604,1740934308054,-500.0,0.00028564,2]
[355142605,1740934308067,-500.0,0.00028564,2]
[355142606,1740934308079,-652.27,0.00028564,2]
[355142607,1740934308091,-603.66,0.00028564,2]
[355142608,1740934308102,-500.0,0.00028564,2]
[355142609,1740934308114,-959.87,0.00028564,2]
[355142610,1740934308125,-500.0,0.00028564,2]
[355142611,1740934308137,-273.088224,0.00028564,2]
[355142612,1740934308147,-500.0,0.00028564,2]
[355142613,1740934308159,-283.78,0.00028564,2]
[355142614,1740934308171,-500.0,0.00028564,2]
[355142615,1740934308183,-553.49,0.00028564,2]
[355142616,1740934308194,-500.0,0.00028564,2]
[355142617,1740934308206,-500.0,0.00028564,2]
[355142618,1740934308217,-586.59,0.00028564,2]
[355142619,1740934308230,-490.051962,0.00028564,2]
[355142620,1740934308241,-500.0,0.00028564,2]
[355142621,1740934308251,-612.36,0.00028564,2]
[355142622,1740934308262,-500.0,0.00028564,2]
[355142623,1740934308273,-500.0,0.00028564,2]
[355142624,1740934308291,-500.0,0.00028564,2]
[355142625,1740934308301,-500.0,0.00028564,2]
[355142626,1740934308311,-672.77,0.00028564,2]
[355142627,1740934308322,-645.05,0.00028564,2]
[355142628,1740934308339,-500.0,0.00028564,2]
[355142629,1740934308350,-500.0,0.00028564,2]
[355142630,1740934308362,-590.4,0.00028564,2]
[355142631,1740934308372,-901.95,0.00028564,2]
[355142632,1740934308382,-1081.17,0.00028564,2]
[355142633,1740934308393,-241.29592673,0.00028564,2]
[355142634,1740934308403,-500.0,0.00028564,2]
[355142635,1740934308414,-1000.0,0.00028564,2]
[355142636,1740934308424,-839.39,0.00028564,2]
[355142637,1740934308435,-500.0,0.00028564,2]
[355142638,1740934308446,-500.0,0.00028564,2]
[355142639,1740934308455,-500.0,0.00028564,2]
[355142640,1740934308466,-500.0,0.00028564,2]
[355142641,1740934308476,-1654.66,0.00028564,2]
[355142642,1740934308487,-500.0,0.00028564,2]
[355142643,1740934308497,-500.0,0.00028564,2]
[355142644,1740934308508,-500.0,0.00028564,2]
[355142645,1740934308519,-712.05,0.00028564,2]
[355142646,1740934308532,-959.72,0.00028564,2]
[355142647,1740934308543,-500.0,0.00028564,2]
[355142648,1740934308553,-500.0,0.00028564,2]
[355142649,1740934308563,-500.0,0.00028564,2]
[355142650,1740934308574,-1209.06,0.00028564,2]
[355142651,1740934308584,-500.0,0.00028564,2]
[355142652,1740934308595,-589.04,0.00028564,2]
[355142653,1740934308606,-722.24,0.00028564,2]
[355142654,1740934308617,-970.61281258,0.00028564,2]
[355142655,1740934308632,-164.19718742,0.00028564,2]
[355142656,1740934308643,-500.0,0.00028564,2]
[355142657,1740934308654,-500.0,0.00028564,2]
[355142658,1740934308665,-159.18,0.00028564,2]
[355142659,1740934308676,-500.0,0.00028564,2]
[355142660,1740934308687,-1428.61,0.00028564,2]
[355142661,1740934308698,-500.0,0.00028564,2]
[355142662,1740934308709,-500.0,0.00028564,2]
[355142663,1740934308722,-323.31281258,0.00028564,2]
[355142698,1740935282890,-200.0,0.00026,120]
[355142734,1740935431675,-154.66,0.00021918,2]
[355142735,1740935431685,-222.0,0.0002296,2]
[355142736,1740935431696,-341.02851292,0.00023437,2]
[355142737,1740935431706,-500.0,0.00023448,2]
[355142738,1740935431717,-341.02851291,0.00023501,2]
[355142739,1740935431728,-1381.99,0.00023526,2]
[355142740,1740935431739,-177.03,0.00023537,2]
[355142741,1740935431749,-6040.81341602,0.00023547,2]
[355142742,1740935431767,-2166.8472,0.00023547,2]
[355142743,1740935431780,-2722.87938398,0.00023547,2]
[355142744,1740935431789,-373.42,0.0002358,2]
[355142746,1740935431799,-329.68,0.00023601,2]
[355142748,1740935431810,-1290.64,0.00023624,2]
[355142750,1740935431820,-213.7,0.00023836,2]
[355142752,1740935431830,-200.0,0.00023932,2]
[355142754,1740935431839,-150.0,0.00023968,2]
[355142756,1740935431849,-180.418,0.00024187,2]
[355142758,1740935431859,-170.898,0.00024187,2]
[355142760,1740935431869,-253.875,0.00024187,2]
[355142762,1740935431883,-638.106,0.00024187,2]
[355142764,1740935431894,-663.083,0.00024187,2]
[355142766,1740935431905,-644.552,0.00024187,2]
[355142767,1740935431915,-151.393,0.00024187,2]
[355142768,1740935431927,-575.705,0.00024187,2]
[355142769,1740935431936,-994.498,0.00024187,2]
[355142770,1740935431947,-909.0,0.00024187,2]
[355142771,1740935431958,-1425.0,0.00024187,2]
[355142772,1740935431968,-167.748,0.00024187,2]
[355142773,1740935431978,-150.0,0.00024187,2]
[355142774,1740935431988,-3927.0,0.00024187,2]
[355142775,1740935431998,-450.0,0.00024243,2]
[355142776,1740935432010,-150.0,0.00024243,2]
[355142777,1740935432021,-5248.93,0.0002434,2]
[355142778,1740935432032,-3579.0,0.000244,2]
[355142779,1740935432044,-225.75590844,0.00024489,2]
[355142780,1740935432055,-1548.24,0.00024494,2]
[355142781,1740935432066,-4569.08142391,0.00024521,2]
[355142782,1740935432084,-525.81,0.00024523,2]
[355142783,1740935432096,-200.0,0.00024553,2]
[355142784,1740935432107,-5066.07,0.00024573,2]
[355142785,1740935432119,-222.0,0.0002459,2]
[355142786,1740935432134,-1000.0,0.00024594,2]
[355142787,1740935432145,-704.36,0.00024594,2]
[355142788,1740935432155,-19925.30109048,0.00024612,2]
[355142789,1740935432184,-5182.14424055,0.00024612,2]
[355142790,1740935432198,-102979.96527406,0.00024612,2]
[355142791,1740935432209,-500.0,0.00024619,2]
[355142792,1740935432219,-500.0,0.00024619,2]
[355142793,1740935432230,-500.0,0.00024619,2]
[355142794,1740935432240,-500.0,0.00024619,2]
[355142795,1740935432251,-500.0,0.00024619,2]
[355142796,1740935432261,-500.0,0.00024619,2]
[355142797,1740935432272,-500.0,0.00024619,2]
[355142798,1740935432284,-500.0,0.00024619,2]
[355142799,1740935432295,-500.0,0.00024619,2]
[355142800,1740935432308,-500.0,0.00024619,2]
[355142801,1740935432318,-500.0,0.00024619,2]